[Event "Early-Titled-Tuesday-Blitz-September-12-2023"]
[Site "Chess.com"]
[Date "2023.09.12"]
[Round "10"]
[White "FeketeBarika"]
[Black "vladgoncharov"]
[Result "0-1"]
[WhiteElo "2393"]
[BlackElo "2542"]
[TimeControl "180+1"]
[EndTime "9:57:00 PDT"]
[Termination "vladgoncharov won on time"]

1. Nf3 {[%clk 0:02:49.3]} 1... Nf6 {[%clk 0:02:59]} 2. g3 {[%clk 0:02:49.5]}
2... c5 {[%clk 0:02:58.5]} 3. Bg2 {[%clk 0:02:50]} 3... Nc6 {[%clk 0:02:58.9]}
4. c4 {[%clk 0:02:50.4]} 4... d6 {[%clk 0:02:58.3]} 5. Nc3 {[%clk 0:02:49.9]}
5... g6 {[%clk 0:02:58.2]} 6. O-O {[%clk 0:02:50.4]} 6... Bg7 {[%clk 0:02:58]}
7. d4 {[%clk 0:02:49.9]} 7... cxd4 {[%clk 0:02:57.9]} 8. Nxd4 {[%clk 0:02:50.7]}
8... Bd7 {[%clk 0:02:58]} 9. Nc2 {[%clk 0:02:47.9]} 9... O-O {[%clk 0:02:57.2]}
10. Bg5 {[%clk 0:02:45.6]} 10... h6 {[%clk 0:02:53.9]} 11. Bf4 {[%clk
0:02:44.6]} 11... Qa5 {[%clk 0:02:42.6]} 12. Qd2 {[%clk 0:02:37.4]} 12... g5
{[%clk 0:02:23.8]} 13. Be3 {[%clk 0:02:26.1]} 13... Ng4 {[%clk 0:02:23.4]} 14.
h3 {[%clk 0:02:18.9]} 14... Nxe3 {[%clk 0:02:22.7]} 15. Nxe3 {[%clk 0:02:19.5]}
15... Rab8 {[%clk 0:01:53.5]} 16. Rfd1 {[%clk 0:02:07.9]} 16... Rfc8 {[%clk
0:01:49.5]} 17. Ned5 {[%clk 0:02:01.5]} 17... Kf8 {[%clk 0:01:38.8]} 18. a3
{[%clk 0:01:57.5]} 18... Ne5 {[%clk 0:01:32.3]} 19. b3 {[%clk 0:01:50.9]} 19...
b5 {[%clk 0:01:20.9]} 20. Nxe7 {[%clk 0:01:21.7]} 20... Rd8 {[%clk 0:01:05.5]}
21. cxb5 {[%clk 0:01:13.4]} 21... Bxb5 {[%clk 0:00:32.3]} 22. Nf5 {[%clk
0:00:59.1]} 22... Nf3+ {[%clk 0:00:29.8]} 23. Bxf3 {[%clk 0:00:57.3]} 23... Qxc3
{[%clk 0:00:29.9]} 24. Qd5 {[%clk 0:00:46.9]} 24... Qe5 {[%clk 0:00:22.9]} 25.
Nxg7 {[%clk 0:00:35]} 25... Qxd5 {[%clk 0:00:22.2]} 26. Rxd5 {[%clk 0:00:35.6]}
26... Kxg7 {[%clk 0:00:22.6]} 27. Rad1 {[%clk 0:00:32.8]} 27... Rb6 {[%clk
0:00:22.2]} 28. b4 {[%clk 0:00:32]} 28... Bc4 {[%clk 0:00:20.3]} 29. R5d4 {[%clk
0:00:31.7]} 29... Be6 {[%clk 0:00:19.2]} 30. Kg2 {[%clk 0:00:30.5]} 30... Kf6
{[%clk 0:00:18.6]} 31. e3 {[%clk 0:00:30.5]} 31... Ke7 {[%clk 0:00:18.9]} 32.
R1d2 {[%clk 0:00:30.4]} 32... a5 {[%clk 0:00:15.7]} 33. h4 {[%clk 0:00:29.7]}
33... axb4 {[%clk 0:00:15.6]} 34. axb4 {[%clk 0:00:30.6]} 34... gxh4 {[%clk
0:00:15.4]} 35. Rxh4 {[%clk 0:00:30]} 35... Rdb8 {[%clk 0:00:14.9]} 36. Rxh6
{[%clk 0:00:27.8]} 36... Rxb4 {[%clk 0:00:14.8]} 37. Rc2 {[%clk 0:00:23.3]}
37... Rb2 {[%clk 0:00:14.8]} 38. Rc7+ {[%clk 0:00:22.5]} 38... Kf8 {[%clk
0:00:15]} 39. Bh5 {[%clk 0:00:17.4]} 39... R2b7 {[%clk 0:00:09.2]} 40. Rxb7
{[%clk 0:00:15.5]} 40... Rxb7 {[%clk 0:00:09.1]} 41. Rf6 {[%clk 0:00:16.4]}
41... Kg7 {[%clk 0:00:09]} 42. Rf4 {[%clk 0:00:14.4]} 42... Rb6 {[%clk
0:00:09.5]} 43. Bf3 {[%clk 0:00:13.3]} 43... f5 {[%clk 0:00:09.8]} 44. Be2
{[%clk 0:00:12.4]} 44... Rb2 {[%clk 0:00:09]} 45. Bd3 {[%clk 0:00:12.4]} 45...
Bd5+ {[%clk 0:00:09.1]} 46. Kh3 {[%clk 0:00:08.2]} 46... Rd2 {[%clk 0:00:08.3]}
47. Bxf5 {[%clk 0:00:07.3]} 47... Rd1 {[%clk 0:00:08.9]} 48. Kg4 {[%clk
0:00:06.5]} 48... Rd2 {[%clk 0:00:08.5]} 49. e4 {[%clk 0:00:06.6]} 49... Bf7
{[%clk 0:00:08.2]} 50. Bd7 {[%clk 0:00:05.2]} 50... Rd4 {[%clk 0:00:07.6]} 51.
Kg5 {[%clk 0:00:04.4]} 51... Rc4 {[%clk 0:00:07.2]} 52. g4 {[%clk 0:00:03.9]}
52... Rc5+ {[%clk 0:00:07.5]} 53. Kh4 {[%clk 0:00:04.1]} 53... Bg6 {[%clk
0:00:06.9]} 54. f3 {[%clk 0:00:03.9]} 54... Rc1 {[%clk 0:00:06.5]} 55. g5 {[%clk
0:00:02.1]} 55... Rh1+ {[%clk 0:00:05.4]} 56. Bh3 {[%clk 0:00:02.7]} 56... Bf7
{[%clk 0:00:04.9]} 57. Rf6 {[%clk 0:00:02.7]} 57... d5 {[%clk 0:00:04.8]} 58. e5
{[%clk 0:00:02.2]} 58... Bg6 {[%clk 0:00:04.8]} 59. e6 {[%clk 0:00:01.8]} 59...
d4 {[%clk 0:00:05.3]} 60. e7 {[%clk 0:00:01.6]} 60... Re1 {[%clk 0:00:04.9]} 0-1

[Event "Early-Titled-Tuesday-Blitz-September-12-2023"]
[Site "Chess.com"]
[Date "2023.09.12"]
[Round "10"]
[White "Zkid"]
[Black "DefiantChair"]
[Result "1-0"]
[WhiteElo "2884"]
[BlackElo "2681"]
[TimeControl "180+1"]
[EndTime "9:57:01 PDT"]
[Termination "Zkid won by resignation"]

1. e4 {[%clk 0:03:00.9]} 1... c5 {[%clk 0:02:59.6]} 2. Nf3 {[%clk 0:03:00.6]}
2... d6 {[%clk 0:02:59.5]} 3. d4 {[%clk 0:03:01.2]} 3... cxd4 {[%clk 0:03:00.4]}
4. Nxd4 {[%clk 0:03:02.1]} 4... Nf6 {[%clk 0:03:00.6]} 5. Nc3 {[%clk 0:03:00.7]}
5... a6 {[%clk 0:03:01.2]} 6. h3 {[%clk 0:03:00.9]} 6... e5 {[%clk 0:03:01.1]}
7. Nde2 {[%clk 0:03:00]} 7... h5 {[%clk 0:03:01.6]} 8. Bg5 {[%clk 0:02:59.7]}
8... Be6 {[%clk 0:02:59.7]} 9. g3 {[%clk 0:02:59]} 9... Be7 {[%clk 0:02:54.6]}
10. Bg2 {[%clk 0:02:57.2]} 10... Nc6 {[%clk 0:02:49.7]} 11. Qd2 {[%clk
0:02:45.5]} 11... Rc8 {[%clk 0:02:49.1]} 12. O-O {[%clk 0:02:34.6]} 12... Qc7
{[%clk 0:02:44.2]} 13. Rfd1 {[%clk 0:02:31.1]} 13... b5 {[%clk 0:02:43.9]} 14.
a3 {[%clk 0:02:30.7]} 14... Na5 {[%clk 0:02:35.4]} 15. b3 {[%clk 0:02:24.4]}
15... Nb7 {[%clk 0:02:30.4]} 16. b4 {[%clk 0:02:14.1]} 16... Nd8 {[%clk
0:02:24.9]} 17. Rac1 {[%clk 0:02:11.2]} 17... Bc4 {[%clk 0:02:22.3]} 18. Bxf6
{[%clk 0:02:07.4]} 18... Bxf6 {[%clk 0:02:21.4]} 19. Qxd6 {[%clk 0:02:05]} 19...
Qxd6 {[%clk 0:02:17.8]} 20. Rxd6 {[%clk 0:02:05.9]} 20... Nc6 {[%clk 0:02:16.4]}
21. h4 {[%clk 0:01:52.6]} 21... Ke7 {[%clk 0:01:57.2]} 22. Rdd1 {[%clk
0:01:46.4]} 22... Nd4 {[%clk 0:01:46.7]} 23. Nxd4 {[%clk 0:01:43.1]} 23... exd4
{[%clk 0:01:47.6]} 24. Nd5+ {[%clk 0:01:43]} 24... Bxd5 {[%clk 0:01:47.3]} 25.
exd5 {[%clk 0:01:43.9]} 25... Rc3 {[%clk 0:01:42.5]} 26. Rd3 {[%clk 0:01:20.5]}
26... Rhc8 {[%clk 0:01:40.3]} 27. Re1+ {[%clk 0:00:48.6]} 27... Kd6 {[%clk
0:01:40.1]} 28. Bf3 {[%clk 0:00:37.5]} 28... g6 {[%clk 0:01:32.4]} 29. Be4
{[%clk 0:00:36.3]} 29... R8c7 {[%clk 0:01:17.9]} 30. Kg2 {[%clk 0:00:27]} 30...
Bg7 {[%clk 0:01:07.8]} 31. Rxc3 {[%clk 0:00:26.3]} 31... Rxc3 {[%clk 0:01:07.4]}
32. Ra1 {[%clk 0:00:26.1]} 32... f5 {[%clk 0:00:50.5]} 33. Bd3 {[%clk
0:00:24.5]} 33... Kxd5 {[%clk 0:00:39.7]} 34. a4 {[%clk 0:00:24.1]} 34... Rc7
{[%clk 0:00:29.1]} 35. axb5 {[%clk 0:00:20.6]} 35... axb5 {[%clk 0:00:30]} 36.
Ra5 {[%clk 0:00:19.8]} 36... Rb7 {[%clk 0:00:20.6]} 37. Ra6 {[%clk 0:00:19.2]}
37... Bf8 {[%clk 0:00:16.7]} 38. Rxg6 {[%clk 0:00:19.2]} 38... Bxb4 {[%clk
0:00:16.9]} 39. Bxf5 {[%clk 0:00:19.1]} 39... Kc4 {[%clk 0:00:16]} 40. Rc6+
{[%clk 0:00:17.3]} 40... Bc5 {[%clk 0:00:12.9]} 41. Bd3+ {[%clk 0:00:16.6]}
41... Kd5 {[%clk 0:00:12.6]} 42. Rh6 {[%clk 0:00:16.3]} 42... b4 {[%clk
0:00:12.6]} 43. Rxh5+ {[%clk 0:00:16.6]} 43... Kd6 {[%clk 0:00:13.1]} 44. Rh6+
{[%clk 0:00:13.7]} 44... Kd5 {[%clk 0:00:13.3]} 45. Rh5+ {[%clk 0:00:12.7]}
45... Kd6 {[%clk 0:00:13.4]} 46. Bc4 {[%clk 0:00:13.4]} 46... Re7 {[%clk
0:00:09.1]} 47. Rd5+ {[%clk 0:00:12.6]} 47... Kc6 {[%clk 0:00:09.3]} 48. h5
{[%clk 0:00:13.1]} 48... Rg7 {[%clk 0:00:04.7]} 49. h6 {[%clk 0:00:12.3]} 49...
Rh7 {[%clk 0:00:05.1]} 50. Rh5 {[%clk 0:00:08.6]} 50... Bf8 {[%clk 0:00:05.5]}
51. g4 {[%clk 0:00:07.5]} 51... Rxh6 {[%clk 0:00:05.4]} 52. Rxh6+ {[%clk
0:00:07.9]} 52... Bxh6 {[%clk 0:00:06.3]} 53. Kg3 {[%clk 0:00:08]} 53... Kc5
{[%clk 0:00:06.4]} 54. Bd3 {[%clk 0:00:07.8]} 54... Kd5 {[%clk 0:00:07.1]} 55.
f4 {[%clk 0:00:07.9]} 55... Bf8 {[%clk 0:00:07.7]} 56. g5 {[%clk 0:00:08.3]}
56... Ke6 {[%clk 0:00:07.9]} 57. Kg4 {[%clk 0:00:08.8]} 57... Bd6 {[%clk
0:00:08.1]} 58. Bc4+ {[%clk 0:00:09.1]} 58... Ke7 {[%clk 0:00:07.9]} 59. f5
{[%clk 0:00:10]} 59... Kf8 {[%clk 0:00:08.4]} 60. f6 {[%clk 0:00:10.6]} 60...
Be5 {[%clk 0:00:09]} 61. Kf5 {[%clk 0:00:11]} 61... Bd6 {[%clk 0:00:08.6]} 62.
g6 {[%clk 0:00:11.5]} 1-0

[Event "Early-Titled-Tuesday-Blitz-September-12-2023"]
[Site "Chess.com"]
[Date "2023.09.12"]
[Round "10"]
[White "kleopl"]
[Black "profedechess93"]
[Result "1-0"]
[WhiteElo "2542"]
[BlackElo "2642"]
[TimeControl "180+1"]
[EndTime "9:57:06 PDT"]
[Termination "kleopl won by resignation"]

1. e4 {[%clk 0:03:00.9]} 1... e6 {[%clk 0:02:59.8]} 2. d4 {[%clk 0:03:00.2]}
2... d5 {[%clk 0:03:00.4]} 3. e5 {[%clk 0:03:00.7]} 3... c5 {[%clk 0:03:00]} 4.
Qg4 {[%clk 0:03:01]} 4... Ne7 {[%clk 0:02:57.9]} 5. Nf3 {[%clk 0:03:00.8]} 5...
Nf5 {[%clk 0:02:55.9]} 6. c3 {[%clk 0:02:59.9]} 6... cxd4 {[%clk 0:02:55.4]} 7.
cxd4 {[%clk 0:03:00]} 7... Qa5+ {[%clk 0:02:54.8]} 8. Nc3 {[%clk 0:02:58.9]}
8... h5 {[%clk 0:02:50.4]} 9. Qf4 {[%clk 0:02:56.2]} 9... g6 {[%clk 0:02:48.3]}
10. h4 {[%clk 0:02:52.2]} 10... Nc6 {[%clk 0:02:45.4]} 11. Bb5 {[%clk
0:02:47.5]} 11... Bd7 {[%clk 0:02:41.1]} 12. Bxc6 {[%clk 0:02:47.4]} 12... bxc6
{[%clk 0:02:39.2]} 13. O-O {[%clk 0:02:47.1]} 13... Rb8 {[%clk 0:02:31.3]} 14.
a3 {[%clk 0:02:40.8]} 14... Rb3 {[%clk 0:01:50.9]} 15. Nd2 {[%clk 0:02:30.3]}
15... Bh6 {[%clk 0:01:49]} 16. Qh2 {[%clk 0:02:21.9]} 16... Rb8 {[%clk
0:01:32.4]} 17. Nf3 {[%clk 0:01:42.2]} 17... Bxc1 {[%clk 0:01:30.4]} 18. Rfxc1
{[%clk 0:01:43.1]} 18... Rxb2 {[%clk 0:01:30.2]} 19. Qf4 {[%clk 0:01:39.6]}
19... Rb3 {[%clk 0:01:24.1]} 20. Nd1 {[%clk 0:01:36.8]} 20... O-O {[%clk
0:01:19.5]} 21. Rc5 {[%clk 0:01:26.6]} 21... Qb6 {[%clk 0:01:12.1]} 22. Rcc1
{[%clk 0:01:21.6]} 22... Rxf3 {[%clk 0:01:04.6]} 23. gxf3 {[%clk 0:01:17.7]}
23... Nxd4 {[%clk 0:01:04.5]} 24. Nc3 {[%clk 0:01:12.3]} 24... c5 {[%clk
0:01:02.7]} 25. Kg2 {[%clk 0:01:11.4]} 25... Qd8 {[%clk 0:00:51.3]} 26. Qg5
{[%clk 0:01:05.5]} 26... Nf5 {[%clk 0:00:47.1]} 27. Kh3 {[%clk 0:01:01.4]} 27...
Kg7 {[%clk 0:00:31.9]} 28. Ne2 {[%clk 0:00:56.1]} 28... Qxg5 {[%clk 0:00:31.9]}
29. hxg5 {[%clk 0:00:56]} 29... Rc8 {[%clk 0:00:32.8]} 30. f4 {[%clk 0:00:53.6]}
30... d4 {[%clk 0:00:31]} 31. Rab1 {[%clk 0:00:53.8]} 31... a6 {[%clk
0:00:25.5]} 32. Rb6 {[%clk 0:00:45.7]} 32... Bb5 {[%clk 0:00:25.2]} 33. Ng3
{[%clk 0:00:33.4]} 33... Nxg3 {[%clk 0:00:25.2]} 34. Kxg3 {[%clk 0:00:32]} 34...
d3 {[%clk 0:00:26.1]} 35. Kf3 {[%clk 0:00:29.7]} 35... d2 {[%clk 0:00:23.4]} 36.
Rd1 {[%clk 0:00:28.2]} 36... Rd8 {[%clk 0:00:23.9]} 37. Rd6 {[%clk 0:00:22.6]}
37... Rxd6 {[%clk 0:00:15.3]} 38. exd6 {[%clk 0:00:22.7]} 38... Bc6+ {[%clk
0:00:12.4]} 39. Ke3 {[%clk 0:00:22.7]} 39... h4 {[%clk 0:00:12.8]} 40. f3 {[%clk
0:00:19.4]} 40... Kf8 {[%clk 0:00:11.8]} 41. Rxd2 {[%clk 0:00:19.1]} 41... Ke8
{[%clk 0:00:12.5]} 42. Rc2 {[%clk 0:00:17.6]} 42... Kd7 {[%clk 0:00:12.5]} 43.
Rxc5 {[%clk 0:00:16.6]} 43... Kxd6 {[%clk 0:00:13.4]} 44. Rc2 {[%clk 0:00:17]}
44... Bd5 {[%clk 0:00:12.7]} 45. Rh2 {[%clk 0:00:16.6]} 45... e5 {[%clk
0:00:13.6]} 46. Rxh4 {[%clk 0:00:16.7]} 46... exf4+ {[%clk 0:00:13.4]} 47. Rxf4
{[%clk 0:00:17.1]} 47... Be6 {[%clk 0:00:14.3]} 48. Kd4 {[%clk 0:00:16.6]} 48...
a5 {[%clk 0:00:14.4]} 49. Re4 {[%clk 0:00:16.6]} 49... a4 {[%clk 0:00:13.3]} 50.
f4 {[%clk 0:00:16.2]} 50... Bb3 {[%clk 0:00:13.6]} 51. Re5 {[%clk 0:00:16]}
51... Kd7 {[%clk 0:00:12.6]} 52. Ra5 {[%clk 0:00:16]} 52... Ke6 {[%clk
0:00:12.6]} 53. Ke4 {[%clk 0:00:14.4]} 53... Bc2+ {[%clk 0:00:12.6]} 54. Ke3
{[%clk 0:00:14.7]} 54... Bb3 {[%clk 0:00:13.5]} 55. Ra6+ {[%clk 0:00:13.8]}
55... Ke7 {[%clk 0:00:12.8]} 56. Kd4 {[%clk 0:00:13.7]} 56... Kd7 {[%clk
0:00:12]} 57. Ke5 {[%clk 0:00:14]} 57... Kc7 {[%clk 0:00:10.7]} 58. Kf6 {[%clk
0:00:09.8]} 58... Kb7 {[%clk 0:00:10]} 59. Ra5 {[%clk 0:00:09.8]} 59... Kb6
{[%clk 0:00:10]} 60. Re5 {[%clk 0:00:10.7]} 60... Kc6 {[%clk 0:00:09.6]} 61. Re7
{[%clk 0:00:10.3]} 61... Kc5 {[%clk 0:00:10]} 62. Rxf7 {[%clk 0:00:10.7]} 62...
Kc4 {[%clk 0:00:09.8]} 63. Rb7 {[%clk 0:00:09.6]} 63... Kc3 {[%clk 0:00:10.7]}
64. Kxg6 {[%clk 0:00:08.9]} 64... Bc2+ {[%clk 0:00:11.1]} 65. Kh6 {[%clk
0:00:08.9]} 65... Be4 {[%clk 0:00:11.3]} 66. Rb4 {[%clk 0:00:07.8]} 66... Bc6
{[%clk 0:00:10.9]} 67. g6 {[%clk 0:00:07.9]} 1-0

[Event "Early-Titled-Tuesday-Blitz-September-12-2023"]
[Site "Chess.com"]
[Date "2023.09.12"]
[Round "10"]
[White "karinachess1"]
[Black "Itk04"]
[Result "1/2-1/2"]
[WhiteElo "2618"]
[BlackElo "2750"]
[TimeControl "180+1"]
[EndTime "9:57:13 PDT"]
[Termination "Game drawn by repetition"]

1. d4 {[%clk 0:03:00.9]} 1... Nf6 {[%clk 0:02:59.9]} 2. c4 {[%clk 0:03:00.6]}
2... g6 {[%clk 0:02:58.4]} 3. g3 {[%clk 0:03:00.7]} 3... Bg7 {[%clk 0:02:57.5]}
4. Bg2 {[%clk 0:03:00.8]} 4... c5 {[%clk 0:02:41.9]} 5. d5 {[%clk 0:02:45.2]}
5... d6 {[%clk 0:02:40]} 6. Nc3 {[%clk 0:02:44.9]} 6... O-O {[%clk 0:02:40.6]}
7. Nf3 {[%clk 0:02:40]} 7... e6 {[%clk 0:02:40.7]} 8. O-O {[%clk 0:02:40]} 8...
exd5 {[%clk 0:02:41]} 9. cxd5 {[%clk 0:02:40.9]} 9... Re8 {[%clk 0:02:35.9]} 10.
Nd2 {[%clk 0:02:36.8]} 10... a6 {[%clk 0:02:20.3]} 11. a4 {[%clk 0:02:36.4]}
11... Nbd7 {[%clk 0:02:20.7]} 12. a5 {[%clk 0:02:16]} 12... b5 {[%clk
0:02:11.8]} 13. axb6 {[%clk 0:02:15.9]} 13... Nxb6 {[%clk 0:02:12.4]} 14. Nb3
{[%clk 0:02:10.7]} 14... Bf5 {[%clk 0:01:50.5]} 15. Na5 {[%clk 0:01:50.3]} 15...
Qd7 {[%clk 0:01:45.1]} 16. Re1 {[%clk 0:01:27.3]} 16... Ne4 {[%clk 0:01:40.6]}
17. Bd2 {[%clk 0:01:21.9]} 17... Bd4 {[%clk 0:01:24.7]} 18. e3 {[%clk
0:01:16.2]} 18... Bg7 {[%clk 0:01:15]} 19. Nxe4 {[%clk 0:00:56.7]} 19... Bxe4
{[%clk 0:01:15.9]} 20. Bxe4 {[%clk 0:00:39.6]} 20... Rxe4 {[%clk 0:01:16.8]} 21.
f3 {[%clk 0:00:40]} 21... Ree8 {[%clk 0:01:05.3]} 22. Bc3 {[%clk 0:00:40.3]}
22... Qb5 {[%clk 0:00:57.3]} 23. Qd2 {[%clk 0:00:33.1]} 23... Bxc3 {[%clk
0:00:42.7]} 24. bxc3 {[%clk 0:00:30.3]} 24... Nc4 {[%clk 0:00:41.3]} 25. Nxc4
{[%clk 0:00:25.2]} 25... Qxc4 {[%clk 0:00:42.2]} 26. Ra5 {[%clk 0:00:18]} 26...
Rab8 {[%clk 0:00:38.2]} 27. Rea1 {[%clk 0:00:17]} 27... Rb6 {[%clk 0:00:32.6]}
28. e4 {[%clk 0:00:15.4]} 28... Reb8 {[%clk 0:00:31.6]} 29. Qe1 {[%clk
0:00:04.7]} 29... Qd3 {[%clk 0:00:28.6]} 30. R5a2 {[%clk 0:00:03.6]} 30... Qxf3
{[%clk 0:00:28.1]} 31. Rf2 {[%clk 0:00:03.3]} 31... Qd3 {[%clk 0:00:26.3]} 32.
Rd1 {[%clk 0:00:02.8]} 32... Qxd1 {[%clk 0:00:25.7]} 33. Qxd1 {[%clk 0:00:03]}
33... Rb1 {[%clk 0:00:26.6]} 34. Rf1 {[%clk 0:00:03.8]} 34... Rxd1 {[%clk
0:00:26.5]} 35. Rxd1 {[%clk 0:00:04.7]} 35... Rb3 {[%clk 0:00:25.5]} 36. Ra1
{[%clk 0:00:05]} 36... Rb6 {[%clk 0:00:25.3]} 37. Ra5 {[%clk 0:00:05.1]} 37...
Kg7 {[%clk 0:00:25.7]} 38. Kf2 {[%clk 0:00:05.8]} 38... Kf6 {[%clk 0:00:26.5]}
39. Ke3 {[%clk 0:00:06.4]} 39... Ke5 {[%clk 0:00:27.2]} 40. Kd3 {[%clk
0:00:06.2]} 40... h5 {[%clk 0:00:23]} 41. Ra1 {[%clk 0:00:06.1]} 41... f5 {[%clk
0:00:20]} 42. exf5 {[%clk 0:00:06.1]} 42... gxf5 {[%clk 0:00:20.9]} 43. Kc4
{[%clk 0:00:06.3]} 43... Rb2 {[%clk 0:00:18.6]} 44. Rxa6 {[%clk 0:00:06]} 44...
Rxh2 {[%clk 0:00:18.3]} 45. Ra8 {[%clk 0:00:05.7]} 45... Ke4 {[%clk 0:00:09.6]}
46. Re8+ {[%clk 0:00:05.7]} 46... Kf3 {[%clk 0:00:10.2]} 47. Rf8 {[%clk
0:00:06.4]} 47... Kxg3 {[%clk 0:00:03.8]} 48. Rxf5 {[%clk 0:00:06.5]} 48... Rf2
{[%clk 0:00:04.5]} 49. Rxh5 {[%clk 0:00:05.8]} 49... Rf6 {[%clk 0:00:04.4]} 50.
Kb5 {[%clk 0:00:05.3]} 50... Kf4 {[%clk 0:00:04.9]} 51. c4 {[%clk 0:00:05.3]}
51... Ke4 {[%clk 0:00:05.4]} 52. Rh4+ {[%clk 0:00:04.9]} 52... Kd3 {[%clk
0:00:05.6]} 53. Kc6 {[%clk 0:00:04.5]} 53... Rg6 {[%clk 0:00:05.9]} 54. Rf4
{[%clk 0:00:04.3]} 54... Rh6 {[%clk 0:00:06]} 55. Rg4 {[%clk 0:00:04.1]} 55...
Rf6 {[%clk 0:00:06.7]} 56. Rh4 {[%clk 0:00:04.3]} 56... Kc3 {[%clk 0:00:06.8]}
57. Kb5 {[%clk 0:00:03.9]} 57... Kd3 {[%clk 0:00:06]} 58. Rg4 {[%clk 0:00:03.1]}
58... Rh6 {[%clk 0:00:04.7]} 59. Rf4 {[%clk 0:00:03.4]} 59... Rg6 {[%clk
0:00:05.1]} 60. Rh4 {[%clk 0:00:03.5]} 60... Ke3 {[%clk 0:00:05.6]} 61. Kc6
{[%clk 0:00:03.7]} 61... Kd3 {[%clk 0:00:05.8]} 62. Kb5 {[%clk 0:00:04]} 62...
Ke3 {[%clk 0:00:05]} 63. Kc6 {[%clk 0:00:04.2]} 63... Rf6 {[%clk 0:00:05.1]} 64.
Kb5 {[%clk 0:00:04.2]} 64... Kd3 {[%clk 0:00:04.6]} 1/2-1/2